[Event "44th Chess Olympiad Women 2022"]
[Site "Chennai"]
[Date "2022.08.05"]
[Round "7.14"]
[White "Aydin, Gulenay"]
[Black "Heinemann, Josefine"]
[Result "1/2-1/2"]
[WhiteElo "2100"]
[BlackElo "2321"]
[Annotator "TA"]
[PlyCount "65"]
[EventDate "2022.??.??"]
[TimeControl "60"]

{[%evp 9,65,5,14,10,22,7,16,8,2,2,12,5,0,0,9,9,9,9,16,13,20,11,41,33,35,0,0,0,
0,0,0,0,9,0,4,2,10,2,3,0,0,29,22,22,38,8,21,21,21,21,23,11,13,0,23,0,35,0]} 1.
e4 {[%emt 0:00:02]} c5 {[%emt 0:00:06]} 2. Nc3 {[%emt 0:00:08]} d6 {[%emt 0:00:
00]} 3. Bb5+ {[%emt 0:00:14]} Bd7 {[%emt 0:00:06]} 4. Bxd7+ {[%emt 0:00:09]}
Qxd7 {[%emt 0:00:05]} 5. d4 {[%emt 0:00:06]} cxd4 {[%emt 0:00:04]} 6. Qxd4 {
[%emt 0:00:04] B23: Closed Sicilian: Lines without g3.} Nc6 {[%emt 0:00:26]} 7.
Qd3 {[%emt 0:00:40]} g6 {[%emt 0:00:29]} 8. Nf3 {[%emt 0:00:32] The position
is equal.} Bg7 {[%emt 0:00:07]} 9. O-O {[%emt 0:00:49]} Nf6 {[%emt 0:00:04]}
10. Nd5 {[%emt 0:04:41]} O-O {[%emt 0:03:20]} 11. Bg5 {[%emt 0:00:35]} Nxd5 {
[%emt 0:00:14]} 12. exd5 {[%emt 0:00:03]} Ne5 {[%emt 0:00:09]} 13. Nxe5 {
[%emt 0:00:06]} Bxe5 {[%emt 0:00:04]} 14. Rae1 {[%emt 0:02:03]} Rfe8 {[%emt 0:
00:00]} 15. c3 {[%emt 0:02:20]} Rac8 {[%emt 0:05:02] [#]} 16. h4 $146 {[%emt 0:
00:00]} ({Predecessor:} 16. f4 Bf6 17. h4 Bg7 18. f5 Be5 19. h5 f6 20. Be3 g5
21. Bxa7 Qa4 22. Bd4 Qxa2 23. Bxe5 dxe5 {1-0 (68) Sanal,V (2601)-Shuvalova,P 
(2504) Chess.com INT 2022}) 16... Bf6 {[%emt 0:02:26]} 17. Bxf6 {[%emt 0:34:47]
} exf6 {[%emt 0:00:07]} 18. Qd4 {[%emt 0:00:37]} Qf5 {[%emt 0:02:35]} 19. Qxa7
{[%emt 0:05:14]} Qxd5 {[%emt 0:01:38]} 20. Rd1 {[%emt 0:03:12]} Qc6 {[%emt 0:
00:00]} 21. Qd4 {[%emt 0:08:30][%csl Yd6,Yf6]} Re6 {[%emt 0:04:50]} 22. Rfe1 {
[%emt 0:00:53] Hoping for Rxe6.} Rce8 {[%emt 0:02:59]} 23. Rxe6 {[%emt 0:00:00]
} Rxe6 $11 {[%emt 0:00:07] Endgame KQR-KQR} 24. c4 {[%emt 0:00:00]} Kg7 {
[%emt 0:06:06]} 25. b3 {[%emt 0:01:46]} h5 {[%emt 0:06:30]} 26. Qd5 {[%emt 0:
01:48]} Qb6 {[%emt 0:04:56]} 27. Qd2 {[%emt 0:01:33] Against Re2} Qa6 {[%emt 0:
10:31]} 28. a4 {[%emt 0:14:01]} Qb6 {[%emt 0:00:20]} 29. Qd3 {[%emt 0:00:00]}
Qb4 {[%emt 0:00:53]} 30. Qc2 {[%emt 0:00:22]} Re5 {[%emt 0:04:59]} 31. Qd3 {
[%emt 0:00:58]} Re6 {[%emt 0:06:28]} 32. Qc2 {[%emt 0:00:08]} Re5 {[%emt 0:00:
34]} 33. Qd3 {[%emt 0:00:02] Weighted Error Value: White=0.05 (flawless) /
Black=0.03 (flawless)} 1/2-1/2

[Event "44th Chess Olympiad Women 2022"]
[Site "Chennai"]
[Date "2022.08.05"]
[Round "7.14"]
[White "Kocyigit, Buse Naz"]
[Black "Schneider, Jana"]
[Result "0-1"]
[WhiteElo "1991"]
[BlackElo "2342"]
[Annotator "TA"]
[PlyCount "88"]
[EventDate "2022.??.??"]
[TimeControl "60"]

{[%evp 9,88,-14,0,-7,0,-20,-19,-4,-12,-33,-35,-34,-37,-39,-18,-24,-20,-38,-6,
-11,0,-6,19,8,0,-25,19,12,12,-5,63,70,56,35,27,30,27,27,30,30,22,23,38,34,44,0,
26,0,0,0,0,-25,-36,-28,-35,-32,-30,-99,-106,-549,-537,-706,-706,-681,-520,-580,
-552,-629,-420,-789,-764,-716,-725,-729,-684,-29992,-29991,-29994,-29995,
-29995,-29996]} 1. d4 {[%emt 0:00:02]} Nf6 {[%emt 0:00:14]} 2. Bg5 {[%emt 0:00:
00]} d5 {[%emt 0:00:30]} 3. Bxf6 {[%emt 0:01:03]} gxf6 {[%emt 0:00:09]} 4. e3 {
[%emt 0:00:26]} c5 {[%emt 0:01:47]} 5. c4 {[%emt 0:02:54]} cxd4 {[%emt 0:03:09]
} 6. Qxd4 {[%emt 0:05:05] D00:1 d4 d5: Unusual lines.} dxc4 {[%emt 0:15:59]} 7.
Qxd8+ {[%emt 0:02:18]} Kxd8 {[%emt 0:00:11]} 8. Bxc4 {[%emt 0:00:19] The
position is equal.} e6 {[%emt 0:00:38] [#]} 9. Ne2 $146 {[%emt 0:00:46]} (9.
Nc3 {looks sharper.} Rg8 10. Rd1+ Bd7 11. Nge2) ({Predecessor:} 9. Nc3 a6 10.
Be2 Bd7 11. Nf3 Nc6 12. O-O-O Kc7 13. Kb1 Rd8 14. Nd4 Nxd4 15. Rxd4 {0-1 (40)
Olund,J (2313)-Tsydypov,Z (2568) Chess.com INT 2019}) 9... f5 {[%emt 0:05:25]}
10. Nbc3 {[%emt 0:02:34]} Ke7 {[%emt 0:07:36]} 11. O-O {[%emt 0:12:13]} Nd7 {
[%emt 0:01:39]} 12. Rfd1 {[%emt 0:07:25]} Bg7 {[%emt 0:01:51]} (12... Ne5 {
is more complex.} 13. Bb3 Bd7 14. f4 Ng4) 13. Rd2 {[%emt 0:11:56]} Rg8 {
[%emt 0:03:35] [#] ...Ne5 is the strong threat.} 14. Nd4 {[%emt 0:12:46]} Nb6 {
[%emt 0:04:56]} 15. Be2 {[%emt 0:03:16]} Bh6 {[%emt 0:06:01]} 16. Bf3 {[%emt 0:
00:00]} Nc4 {[%emt 0:01:56]} 17. Re2 {[%emt 0:00:36]} (17. Rc2 $5 {[%cal Rd4f5]
}) 17... e5 {[%emt 0:04:44]} 18. Nd5+ {[%emt 0:07:48][%cal Yc3d5,Yd5c7,Yc7b5]}
Kf8 {[%emt 0:00:56]} 19. Rc2 {[%emt 0:08:23]} Nd6 {[%emt 0:02:30]} ({Better is
} 19... Nxe3 $1 $11 20. fxe3 exd4) 20. Nc7 $14 {[%emt 0:00:33]} Rb8 {[%emt 0:
00:59]} 21. Ndb5 {[%emt 0:00:15]} (21. Ne2 $5 {[%cal Ra1d1]}) 21... Nxb5 {
[%emt 0:01:42]} 22. Nxb5 {[%emt 0:00:02]} e4 {[%emt 0:04:06]} 23. Be2 {[%emt 0:
00:41]} f4 {[%emt 0:05:28]} 24. exf4 $1 {[%emt 0:04:30]} ({Of course not} 24.
Nxa7 Bh3 25. g3 fxe3 $17) 24... Bxf4 {[%emt 0:00:11]} 25. Nxa7 {[%emt 0:01:27]}
Bh3 {[%emt 0:01:40]} 26. g3 {[%emt 0:01:57]} e3 {[%emt 0:00:46]} 27. f3 {
[%emt 0:01:44]} Be5 {[%emt 0:05:19]} 28. Rd1 {[%emt 0:01:20]} Ra8 {[%emt 0:01:
30]} 29. Nb5 {[%emt 0:00:38]} Rxa2 {[%emt 0:01:55]} 30. Bc4 {[%emt 0:00:22]}
Rxb2 {[%emt 0:03:35]} 31. Rxb2 {[%emt 0:00:04]} Bxb2 {[%emt 0:00:00] This
bishop pair is nice.} 32. Re1 {[%emt 0:01:04]} Bd7 {[%emt 0:02:31] aiming for .
..Rg5.} 33. Nd6 {[%emt 0:00:12]} (33. Rb1 $11 {keeps the balance.} Be5 34. Kf1)
33... Rg6 $17 {[%emt 0:01:19]} 34. Nxf7 {[%emt 0:00:46] This move loses the
game for White.} (34. Rd1 $17 {is a better chance.}) 34... Rc6 $19 {[%emt 0:00:
57]} 35. Bd5 {[%emt 0:00:31]} Rc5 {[%emt 0:01:59]} 36. Bb3 {[%emt 0:00:11]} Bd4
{[%emt 0:03:31]} 37. Nd6 {[%emt 0:00:49]} Rc3 {[%emt 0:00:00]} 38. Bd5 {
[%emt 0:00:29]} Rc2 {[%emt 0:01:57] [#] And now ...Rf2 would win.} 39. Be4 {
[%emt 0:00:31]} (39. Nc4 $142 e2+ 40. Kg2) 39... Rf2 {[%emt 0:01:09] Strongly
threatening ...e2.} 40. Bd3 {[%emt 0:00:31]} e2 {[%emt 0:01:28]} 41. Kh1 {
[%emt 0:10:05]} Bh3 {[%emt 0:00:36] ( -> ...Bg2+)} 42. Nb5 {[%emt 0:02:00]} Bc5
{[%emt 0:01:10] Black mates.} 43. Nc3 {[%emt 0:02:18]} Bg2+ {[%emt 0:00:00]}
44. Kg1 {[%emt 0:00:14]} Bxf3 {[%emt 0:00:13] Weighted Error Value: White=0.59/
Black=0.16 (very precise)} 0-1

[Event "44th Chess Olympiad Women 2022"]
[Site "Chennai"]
[Date "2022.08.05"]
[Round "7.14"]
[White "Paehtz, Elisabeth"]
[Black "Atalik, Ekaterina"]
[Result "1-0"]
[WhiteElo "2484"]
[BlackElo "2422"]
[Annotator "TA"]
[PlyCount "97"]
[EventDate "2022.??.??"]
[TimeControl "60"]

{[%evp 20,97,40,48,105,8,2,8,43,45,70,21,66,47,82,82,82,82,56,53,60,57,66,5,77,
62,78,54,77,42,68,10,27,5,66,58,65,0,8,8,8,8,8,8,8,8,9,9,9,8,8,31,756,745,1406,
0,138,0,1945,1879,29978,29979,29979,29980,29980,29981,29981,29982,29948,1970,
1772,1823,1366,1054,1925,1925,1357,1321,6203,5685]} 1. d4 {[%emt 0:00:02]} Nf6
{[%emt 0:00:17]} 2. c4 {[%emt 0:00:04]} e6 {[%emt 0:00:13]} 3. Nf3 {[%emt 0:00:
00]} d5 {[%emt 0:00:28]} 4. g3 {[%emt 0:00:05]} Be7 {[%emt 0:00:16]} 5. Bg2 {
[%emt 0:00:05]} O-O {[%emt 0:00:05]} 6. Qc2 {[%emt 0:00:03]} c6 {[%emt 0:00:39]
} 7. O-O {[%emt 0:00:06]} b6 {[%emt 0:01:05]} 8. Rd1 {[%emt 0:02:20]} Bb7 {
[%emt 0:01:18]} 9. Nc3 {[%emt 0:02:27]} Nbd7 {[%emt 0:03:47]} 10. b3 {[%emt 0:
00:00]} Rc8 {[%emt 0:09:48]} 11. e4 {[%emt 0:14:46]} c5 {[%emt 0:01:45] E08:
Closed Catalan: Main Line: 7 Qc2.} (11... dxe4 $14 12. Ng5 Qe8) 12. dxc5 {
[%emt 0:17:08]} ({Only move:} 12. exd5 $1 $16 exd5 13. Bb2) 12... dxc4 $11 {
[%emt 0:19:26]} 13. b4 {[%emt 0:00:09]} bxc5 {[%emt 0:08:39] The position is
equal.} (13... a5 $5 {[%cal Ra5b4]} 14. a3 axb4 15. axb4 bxc5 $11) 14. b5 {
[%emt 0:00:06]} Qc7 {[%emt 0:01:08] Against Ne5} 15. Bf4 {[%emt 0:04:06]} ({
White should try} 15. a4 $14) 15... e5 {[%emt 0:00:41]} 16. Bg5 {[%emt 0:00:05]
[#]} h6 $146 {[%emt 0:07:06]} ({Predecessor:} 16... Nb6 17. a4 Rcd8 18. a5 Nc8
19. Nd2 Rd4 20. b6 axb6 21. Nb5 Rxd2 22. Rxd2 Qc6 23. Bxf6 Bxf6 24. Qxc4 {
½-½ (43) Skalkotas,N (2330)-Michos,T Aegina 1993}) 17. Bxf6 {[%emt 0:01:41]}
Nxf6 {[%emt 0:00:23]} 18. Bf1 {[%emt 0:04:58]} Rfd8 {[%emt 0:01:12]} 19. Bxc4 {
[%emt 0:00:07]} Rd4 {[%emt 0:02:05]} 20. Qb3 {[%emt 0:10:23]} Bf8 {[%emt 0:00:
00][%cal Yf6e4]} 21. Rdc1 {[%emt 0:06:09]} (21. a4 $14) 21... Rd7 {[%emt 0:00:
00]} (21... Nxe4 $11 {remains equal.} 22. Nxd4 Nd2 23. Bxf7+ Kh8) 22. Re1 {
[%emt 0:01:31]} Rcd8 {[%emt 0:09:14][%cal Yd7d3]} 23. Re3 {[%emt 0:08:43]
Inhibits Rd3.} g6 {[%emt 0:00:00]} 24. h3 {[%emt 0:00:41]} (24. a4 $5 {[%cal
Ra4a5]}) 24... h5 {[%emt 0:00:00]} 25. b6 {[%emt 0:03:00]} (25. Re2 $14) 25...
axb6 {[%emt 0:00:52]} 26. Nb5 {[%emt 0:00:04]} Qb8 {[%emt 0:01:03] Threatens
to win with ...Bh6.} 27. Ng5 {[%emt 0:01:14] White is more active. Pair of
Knights!} Bh6 {[%emt 0:00:40]} 28. Bxf7+ {[%emt 0:06:53]} (28. Nxf7 $14 Kh7 29.
Nxd8 Qxd8 30. Rd3 Bxe4 31. Rxd7+ Qxd7 32. Nc3) 28... Kh8 {[%emt 0:01:07]} 29.
h4 {[%emt 0:01:24]} Bxg5 {[%emt 0:05:19]} 30. hxg5 {[%emt 0:00:02]} Nxe4 {
[%emt 0:01:20]} 31. Qe6 $1 {[%emt 0:01:03]} Bd5 {[%emt 0:04:46]} (31... Rd1+
32. Re1 Rxa1 33. Rxa1 $16) 32. Qxg6 {[%emt 0:00:17][%cal Rg6h6]} Rxf7 {[%emt 0:
00:00]} 33. Rxe4 {[%emt 0:00:45] aiming for Rh4. Chess con chili.} Rg7 $132 {
[%emt 0:00:55] Black has counterplay} 34. Qh6+ {[%emt 0:00:24]} (34. Qxh5+ Rh7
35. Qg6 Bxe4 36. Qxe4 Rg8 $17) 34... Kg8 {[%emt 0:00:07]} 35. Nc3 {[%emt 0:03:
25]} Ba8 {[%emt 0:02:30] [#]} (35... Rd6 $14 36. Qxh5 Rh7) 36. Qe6+ $1 $18 {
[%emt 0:00:45]} Kh7 {[%emt 0:00:49]} 37. Qh6+ $2 {[%emt 0:00:00]} ({Weaker is} 
37. Rxe5 Qd6 $16) (37. Rh4 $18 {[%cal Rh4h5] is the precise move to win.} Rxg5
38. Qf7+ Kh8 39. Qf6+ Rg7 40. Rxh5+ Kg8 41. Qe6+ Rf7 42. Qg4+ Rg7 43. Qc4+ Rf7
44. Qh4) 37... Kg8 $16 {[%emt 0:00:04]} 38. Qe6+ $2 {[%emt 0:00:02]} (38. Rh4
$16 Qc7 39. Qxh5 (39. Rxh5 Qc6 $11)) 38... Kh7 $1 $18 {[%emt 0:00:05]} 39. Rh4
{[%emt 0:01:45][%cal Rh4h5]} ({Less strong is} 39. Rxe5 Qd6 $16) 39... Rxg5 {
[%emt 0:01:08] [#]} 40. Qf7+ $1 {[%emt 0:00:00]} Kh8 {[%emt 0:00:50]} 41. Qf6+
{[%emt 0:31:06]} Rg7 {[%emt 0:30:08]} 42. Rxh5+ {[%emt 0:01:17]} Kg8 {[%emt 0:
00:04]} 43. Qe6+ {[%emt 0:00:00]} Rf7 {[%emt 0:00:00]} 44. Rg5+ {[%emt 0:00:00]
} (44. Qh3 $142 Qd6 45. Rh8+ Kg7 46. Qh7+ Kf6 47. Qh4+ Kg7 48. Rxd8 Qxd8 49.
Qxd8) 44... Kf8 {[%emt 0:00:00] White is clearly winning.} 45. Qh6+ {[%emt 0:
00:00]} Ke7 {[%emt 0:00:00]} 46. Re1 {[%emt 0:00:00]} Rd6 {[%emt 0:00:00]} 47.
Rgxe5+ {[%emt 0:00:00]} Kd7 {[%emt 0:00:00]} 48. Qh3+ {[%emt 0:00:00]} Kc6 {
[%emt 0:00:00]} 49. Re8 {[%emt 0:00:00] Weighted Error Value: White=0.48/
Black=0.41} 1-0

[Event "44th Chess Olympiad Women 2022"]
[Site "Chennai"]
[Date "2022.08.05"]
[Round "7.14"]
[White "Wagner, Dinara"]
[Black "Okuyaz, Duru"]
[Result "1-0"]
[WhiteElo "2341"]
[BlackElo "2090"]
[Annotator "ChessBase"]
[PlyCount "75"]
[EventDate "2022.??.??"]
[TimeControl "60"]

1. d4 {[%emt 0:00:03]} d5 {[%emt 0:00:05]} 2. c4 {[%emt 0:00:04]} c6 {[%emt 0:
00:00]} 3. Nf3 {[%emt 0:00:04]} Nf6 {[%emt 0:00:04]} 4. e3 {[%emt 0:00:04]} Bf5
{[%emt 0:00:06]} 5. Nc3 {[%emt 0:00:06]} e6 {[%emt 0:00:05]} 6. Nh4 {[%emt 0:
00:00]} Be4 {[%emt 0:00:05]} 7. f3 {[%emt 0:00:12]} Bg6 {[%emt 0:00:05]} 8. Qb3
{[%emt 0:00:19]} Qc7 {[%emt 0:00:05]} 9. Bd2 {[%emt 0:00:23]} Be7 {[%emt 0:00:
00]} 10. Nxg6 {[%emt 0:00:52]} hxg6 {[%emt 0:00:13]} 11. cxd5 {[%emt 0:00:05]}
Nxd5 {[%emt 0:00:23]} 12. O-O-O {[%emt 0:06:36]} Nxc3 {[%emt 0:01:10]} 13. Bxc3
{[%emt 0:02:25]} Nd7 {[%emt 0:00:20]} 14. Kb1 {[%emt 0:04:05]} O-O {[%emt 0:00:
00]} 15. h4 {[%emt 0:05:17]} c5 {[%emt 0:08:29]} 16. h5 {[%emt 0:03:09]} cxd4 {
[%emt 0:00:40]} 17. Bxd4 {[%emt 0:01:38]} e5 {[%emt 0:11:50]} 18. Bc3 {[%emt 0:
00:00]} gxh5 {[%emt 0:00:50]} 19. Rxh5 {[%emt 0:01:03]} g6 {[%emt 0:06:08]} 20.
Rh3 {[%emt 0:09:56]} Nc5 {[%emt 0:04:11]} 21. Qc2 {[%emt 0:03:05]} Rfd8 {
[%emt 0:25:19]} 22. Rc1 {[%emt 0:01:18]} Ne6 {[%emt 0:08:55]} 23. Bd3 {[%emt 0:
00:00]} Bf6 {[%emt 0:04:23]} 24. Rch1 {[%emt 0:03:29]} Nf8 {[%emt 0:06:13]} 25.
g4 {[%emt 0:02:45]} Qd6 {[%emt 0:05:04]} 26. Be4 {[%emt 0:00:29]} Bg7 {[%emt 0:
00:00]} 27. f4 {[%emt 0:05:44]} Ne6 {[%emt 0:04:25]} 28. fxe5 {[%emt 0:04:15]}
Qb6 {[%emt 0:04:45]} 29. Bxg6 {[%emt 0:01:46]} Ng5 {[%emt 0:00:47]} 30. Bxf7+ {
[%emt 0:06:21]} Nxf7 {[%emt 0:00:06]} 31. e6 {[%emt 0:02:04]} Qxe6 {[%emt 0:00:
00]} 32. Qh7+ {[%emt 0:00:04]} Kf8 {[%emt 0:00:03]} 33. Qxg7+ {[%emt 0:00:25]}
Ke7 {[%emt 0:00:50]} 34. Bb4+ {[%emt 0:03:03]} Kd7 {[%emt 0:00:06]} 35. Qd4+ {
[%emt 0:00:25]} Kc7 {[%emt 0:02:03]} 36. Rc1+ {[%emt 0:00:17]} Kb8 {[%emt 0:00:
00]} 37. Qf4+ {[%emt 0:00:07]} Ne5 {[%emt 0:00:55]} 38. Rh5 {[%emt 0:01:22]}
1-0

[Event "44th Chess Olympiad Women 2022"]
[Site "Chennai"]
[Date "2022.08.05"]
[Round "7.15"]
[White "Baginskaite, Kamile"]
[Black "Gara, Ticia"]
[Result "1/2-1/2"]
[WhiteElo "2134"]
[BlackElo "2367"]
[Annotator "ChessBase"]
[PlyCount "69"]
[EventDate "2022.??.??"]
[TimeControl "60"]

1. d4 {[%emt 0:00:02]} Nf6 {[%emt 0:00:03]} 2. c4 {[%emt 0:00:09]} e6 {[%emt 0:
00:00]} 3. g3 {[%emt 0:00:04]} d5 {[%emt 0:00:30]} 4. Bg2 {[%emt 0:00:06]} dxc4
{[%emt 0:00:43]} 5. Qa4+ {[%emt 0:05:49]} Nbd7 {[%emt 0:02:18]} 6. Qxc4 {
[%emt 0:00:42]} a6 {[%emt 0:02:40]} 7. Be3 {[%emt 0:00:33]} Nb6 {[%emt 0:05:06]
} 8. Qb3 {[%emt 0:34:43]} Nbd5 {[%emt 0:05:31]} 9. Nf3 {[%emt 0:12:07]} c5 {
[%emt 0:09:40]} 10. dxc5 {[%emt 0:00:51]} Nxe3 {[%emt 0:14:07]} 11. Qxe3 {
[%emt 0:00:08]} Qc7 {[%emt 0:01:25]} 12. Nbd2 {[%emt 0:04:40]} Bxc5 {[%emt 0:
00:00]} 13. Rc1 {[%emt 0:00:29]} Bxe3 {[%emt 0:01:51]} 14. Rxc7 {[%emt 0:00:08]
} Nd5 {[%emt 0:03:26]} 15. Rc1 {[%emt 0:06:27]} Ba7 {[%emt 0:00:23]} 16. Ne5 {
[%emt 0:04:56]} f6 {[%emt 0:10:38]} 17. Nd3 {[%emt 0:00:10]} Bd7 {[%emt 0:00:
00]} 18. Nf4 {[%emt 0:02:23]} Nxf4 {[%emt 0:01:28]} 19. gxf4 {[%emt 0:03:03]}
Ke7 {[%emt 0:06:03]} 20. O-O {[%emt 0:04:48]} Rac8 {[%emt 0:00:00]} 21. Bxb7 {
[%emt 0:05:08]} Rxc1 {[%emt 0:00:00]} 22. Rxc1 {[%emt 0:00:05]} Rb8 {[%emt 0:
00:00]} 23. Bxa6 {[%emt 0:00:08]} Rxb2 {[%emt 0:00:00]} 24. Ne4 {[%emt 0:03:05]
} Rxa2 {[%emt 0:00:15]} 25. Bd3 {[%emt 0:00:20]} f5 {[%emt 0:08:45]} 26. Nc3 {
[%emt 0:00:56]} Ra5 {[%emt 0:02:05]} 27. Nd1 {[%emt 0:04:10]} Ra4 {[%emt 0:00:
00]} 28. e3 {[%emt 0:01:02]} Ra3 {[%emt 0:01:26]} 29. Be2 {[%emt 0:00:44]} Kf6
{[%emt 0:00:49]} 30. Bf3 {[%emt 0:02:23]} Bb8 {[%emt 0:02:21]} 31. Nb2 {
[%emt 0:01:37]} Rb3 {[%emt 0:02:20]} 32. Nc4 {[%emt 0:00:13]} Bb5 {[%emt 0:00:
00]} 33. Kg2 {[%emt 0:00:42]} Bxc4 {[%emt 0:00:47]} 34. Rxc4 {[%emt 0:00:45]}
Rb6 {[%emt 0:00:33]} 35. h4 {[%emt 0:00:07]} 1/2-1/2

[Event "44th Chess Olympiad Women 2022"]
[Site "Chennai"]
[Date "2022.08.05"]
[Round "7.15"]
[White "Gaal, Zsoka"]
[Black "Zaksaite, Salomeja"]
[Result "1-0"]
[WhiteElo "2313"]
[BlackElo "2212"]
[Annotator "TA"]
[PlyCount "91"]
[EventDate "2022.??.??"]
[TimeControl "60"]

{[%evp 18,91,45,37,119,0,43,49,24,57,67,38,25,31,30,56,46,61,103,106,110,88,87,
92,77,36,99,106,125,128,109,124,115,111,168,4,129,115,132,75,216,200,197,99,
110,14,33,8,55,49,286,279,287,237,1463,785,29971,29973,6037,1588,1461,1312,
2708,2175,2364,1982,2404,2341,29974,29975,29974,29968,29981,29982,29981,12445]
} 1. Nf3 {[%emt 0:00:10]} Nf6 {[%emt 0:00:30]} 2. c4 {[%emt 0:00:07]} g6 {
[%emt 0:00:28]} 3. Nc3 {[%emt 0:00:06]} Bg7 {[%emt 0:00:38]} 4. e4 {[%emt 0:00:
00]} d6 {[%emt 0:00:16]} 5. d4 {[%emt 0:00:07]} O-O {[%emt 0:00:19]} 6. h3 {
[%emt 0:00:07]} c5 {[%emt 0:04:31]} 7. d5 {[%emt 0:00:19]} e6 {[%emt 0:01:09]}
8. Be3 {[%emt 0:05:01]} exd5 {[%emt 0:09:06]} 9. exd5 {[%emt 0:02:38]} Re8 {
[%emt 0:00:37]} 10. Bd3 {[%emt 0:05:12]} b5 {[%emt 0:15:01] E90: King's Indian:
Classical: Early deviations and 6 h3.} (10... a6 $14) 11. cxb5 {[%emt 0:07:22]
White is more active.} ({White must play} 11. Nxb5 $16 {Hoping for 0-0.} Bh6
12. O-O Bxe3 13. fxe3) 11... Bb7 {[%emt 0:00:47]} 12. O-O {[%emt 0:04:11]} Nbd7
{[%emt 0:10:36] White is slightly better.} 13. Bc4 {[%emt 0:11:05] [#]} Ne4
$146 {[%emt 0:09:49]} ({Predecessor:} 13... a6 14. a4 Nb6 15. Qd3 axb5 16. Bxb5
Nbxd5 17. Bxe8 Qxe8 18. Bg5 Nxc3 19. bxc3 Ne4 {1-0 (61) Jedlicka,A (2253)
-Soural,J (2213) Prague 2018}) 14. Qd3 {[%emt 0:08:36]} Nxc3 {[%emt 0:01:01]}
15. bxc3 {[%emt 0:01:05]} Qa5 {[%emt 0:00:12]} 16. Rfc1 {[%emt 0:06:45]} Nb6 {
[%emt 0:00:25]} 17. a4 $1 {[%emt 0:03:10]} Nxc4 {[%emt 0:13:28]} 18. Qxc4 {
[%emt 0:00:10]} a6 {[%emt 0:00:12]} 19. Rab1 {[%emt 0:04:01]} axb5 {[%emt 0:00:
00]} 20. axb5 {[%emt 0:03:01]} ({But not} 20. Rxb5 Ba6 $15) 20... Qa3 {[%emt 0:
00:00]} 21. Qd3 {[%emt 0:13:38]} Bc8 {[%emt 0:01:45]} (21... Qa2 $1 $14) 22.
Qd1 $16 {[%emt 0:05:17]} Bf5 {[%emt 0:01:13]} 23. Ra1 {[%emt 0:02:47]} Qb2 {
[%emt 0:00:09]} 24. Rxa8 {[%emt 0:00:16]} Rxa8 {[%emt 0:00:03]} 25. c4 {
[%emt 0:00:13]} h5 {[%emt 0:06:46] [#]} (25... h6 $16) 26. Nh4 $2 {[%emt 0:00:
00]} (26. Bf4 $1 $18) 26... Bd7 {[%emt 0:07:33]} (26... Be4 $11 {keeps the
balance.}) 27. Qd2 {[%emt 0:00:53]} Qb3 {[%emt 0:01:02]} 28. Qc2 {[%emt 0:00:
00]} (28. Nf3 $142) 28... Qa3 {[%emt 0:01:59]} (28... Qxc2 $16 29. Rxc2 Bf6)
29. Bf4 $18 {[%emt 0:03:04]} Bf6 {[%emt 0:02:37]} 30. Nxg6 {[%emt 0:05:39]} Kg7
$16 {[%emt 0:00:16] [#]} 31. Bxd6 {[%emt 0:00:37]} fxg6 {[%emt 0:00:04]} 32. b6
$36 {[%emt 0:01:33] Black must now prevent b7. White has the initiative.} Bf5 {
[%emt 0:01:50]} (32... Bc8 $1 $11) 33. Qd2 $14 {[%emt 0:00:00] Threatens to
win with b7.} Qb3 $2 {[%emt 0:00:34]} (33... Rd8 $14 34. Bc7 Re8) 34. Bxc5 $18
{[%emt 0:00:43] aiming for Bd4.} Ra2 {[%emt 0:06:11]} 35. Qf4 {[%emt 0:00:14]}
Rb2 $2 {[%emt 0:01:47]} (35... Qb2 36. Qe3 Ra4) 36. Bd4 {[%emt 0:04:22]} Rb1 {
[%emt 0:02:19]} 37. Bxf6+ {[%emt 0:02:15]} Kxf6 {[%emt 0:00:00]} 38. Qd4+ {
[%emt 0:00:26]} (38. Qd6+ $142 Kg7 39. Rxb1 Qxb1+ 40. Kh2) 38... Kf7 {[%emt 0:
01:04]} 39. Rxb1 {[%emt 0:00:26]} Qxb1+ {[%emt 0:00:07]} 40. Kh2 {[%emt 0:00:
06] And now Qc5 would win.} Qb4 {[%emt 0:00:35] Inhibits Qc5.} 41. d6 {[%emt 0:
08:43] Intending d7 and mate.} Bd7 {[%emt 0:11:41]} 42. Qd5+ {[%emt 0:02:06]}
Be6 {[%emt 0:06:07]} 43. Qb7+ {[%emt 0:00:19] White mates.} Kf6 {[%emt 0:00:19]
} 44. Qe7+ {[%emt 0:05:03]} Kf5 {[%emt 0:04:16]} 45. b7 {[%emt 0:02:02]} h4 {
[%emt 0:03:15]} 46. Qf8+ {[%emt 0:00:40] Weighted Error Value: White=0.33/
Black=0.74} (46. Qc7 $142 g5 47. d7 Bxd7 48. Qxd7+ Ke5 49. Qd5+ Kf4 50. Qf7+
Ke5 51. Qd5+ Kf4 52. Qf3+ Ke5 53. Qd5+) 1-0